bitfinex/quotes_ETHUSD_20240910
["timestamp","ask_amount","ask_price","bid_price","bid_amount"]
[1725963594775,0.89210216,2347.7,2347.4,0.55]
[1725963595430,0.89210216,2347.7,2347.5,19.53]
[1725963595742,0.89210216,2347.7,2347.6,0.55]
[1725963597633,0.89210216,2347.7,2347.6,0.468208]
[1725963598571,0.89210216,2347.8,2347.6,2.46810923]
[1725963599634,0.89210216,2347.7,2347.6,2.46810923]
[1725963599825,0.89210216,2347.7,2347.6,0.468208]
[1725963600773,0.89264693,2347.7,2347.6,0.55]
[1725963600957,1.33815324,2347.7,2347.6,0.55]
[1725963602899,1.33815324,2347.7,2347.4,0.00080426]
[1725963603051,3.29268606,2347.5,2347.4,0.00080426]
[1725963603404,3.73919387,2347.5,2347.4,0.00080426]
[1725963605096,3.29240866,2347.5,2347.4,0.00080426]
[1725963606308,3.73919387,2347.5,2347.4,0.00080426]
[1725963606967,2.23197304,2347.5,2347.4,0.00080426]
[1725963607170,1.78532087,2347.5,2347.4,0.00080426]
[1725963607386,3.2925417,2347.5,2347.4,0.00080426]
[1725963607561,1.78532087,2347.5,2347.4,0.00080426]
[1725963607761,3.2925417,2347.5,2347.4,0.00080426]
[1725963608781,4.14499317,2347.5,2347.4,0.00080426]
[1725963609011,4.59164534,2347.5,2347.4,0.00080426]
[1725963611001,1.78349936,2347.5,2347.4,0.00080426]
[1725963611298,2.23197304,2347.6,2347.4,0.00080426]
[1725963611299,0.89174238,2347.6,2347.4,0.00080426]
[1725963612139,0.89174238,2347.6,2347.4,20.08080426]
[1725963614527,0.89174238,2347.7,2347.5,0.08518944]
[1725963614729,0.89174238,2347.8,2347.6,0.55]
[1725963614926,0.89174238,2347.8,2347.7,0.26432699]
[1725963615104,0.89174238,2347.8,2347.7,0.81432699]
[1725963618137,1.33761357,2347.9,2347.7,0.81432699]
[1725963618138,0.89174238,2347.9,2347.7,0.81432699]
[1725963618433,0.89174238,2347.9,2347.8,0.55]
[1725963619043,1.33761357,2348.0,2347.8,0.55]
[1725963619530,0.89166849,2347.9,2347.8,0.55]
[1725963620033,0.89166849,2347.9,2347.6,0.55]
[1725963620330,0.89166849,2347.9,2347.7,0.08518059]
[1725963620542,0.89166849,2347.9,2347.8,0.55]
[1725963621053,0.89166849,2347.9,2347.5,1.96159849]
[1725963621054,0.89166849,2347.9,2347.6,0.55]
[1725963621189,1.33761357,2348.0,2347.6,0.55]
[1725963621190,0.89166849,2348.0,2347.7,0.25115985]
[1725963621533,0.89166849,2348.0,2347.8,0.63517595]
[1725963622312,0.89166849,2347.9,2347.8,0.63517595]
[1725963622508,0.89166849,2347.9,2347.8,0.55]
[1725963622828,0.89166849,2348.0,2347.8,0.55]
[1725963623430,0.89166849,2347.9,2347.6,0.55]
[1725963623645,0.89166849,2347.9,2347.5,2.69924028]
[1725963623924,0.89166849,2347.9,2347.6,2.22300445]
[1725963624120,0.89166849,2347.9,2347.7,0.55]
[1725963627165,0.89166849,2348.0,2347.7,0.55]
[1725963627372,0.89166849,2347.9,2347.7,0.55]
[1725963630052,0.89166849,2347.9,2347.7,0.63518037]
[1725963630258,0.89166849,2348.0,2347.7,22.17318037]
[1725963630424,0.89166849,2347.9,2347.7,20.16518037]
[1725963633562,1.50722083,2347.9,2347.7,20.08]
[1725963634230,0.89166849,2348.0,2347.7,20.08]
[1725963636165,0.89166849,2348.0,2347.7,0.55]
[1725963636350,0.89166849,2348.0,2347.6,0.6351804]
[1725963636546,0.89166849,2348.1,2347.6,2.65177887]
[1725963636752,0.89166849,2348.0,2347.6,2.65177887]
[1725963637143,2.39888932,2348.1,2347.6,2.56659847]
[1725963637350,0.89166849,2347.9,2347.6,0.55]
[1725963640674,1.33761357,2348.0,2347.6,0.63518099]
[1725963640675,0.89166849,2348.0,2347.6,0.63518099]
[1725963641282,0.89166849,2348.0,2347.7,2.44455937]
[1725963641501,0.89166849,2348.0,2347.8,0.55]
[1725963641981,0.89166849,2348.0,2347.7,0.55]
[1725963642278,0.89166849,2348.0,2347.7,20.08]
[1725963642468,0.89166849,2347.9,2347.7,20.08]
[1725963642667,0.89166849,2348.0,2347.7,20.08]
[1725963646247,2.8448344,2348.1,2347.7,20.08]
[1725963646248,0.89166849,2347.9,2347.7,20.08]
[1725963646572,0.89166849,2348.0,2347.7,20.08]
[1725963647162,0.89166849,2347.9,2347.7,20.08]
[1725963648188,0.89166849,2347.9,2347.7,0.55]
[1725963648340,0.89166849,2347.9,2347.5,19.53]
[1725963648341,0.89166849,2347.9,2347.6,0.63518101]
[1725963648541,0.89166849,2347.9,2347.6,2.58826144]
[1725963649147,0.89166849,2348.0,2347.6,2.58826144]
[1725963649350,0.89166849,2348.1,2347.6,2.58826144]
[1725963649660,0.89166849,2348.0,2347.6,2.58826144]
[1725963649967,0.89166849,2347.9,2347.7,2.21182614]
[1725963650172,0.89166849,2347.9,2347.8,0.55]
[1725963652358,0.89166849,2347.9,2347.5,19.53]
[1725963652359,0.89166849,2347.9,2347.6,0.55]
[1725963652551,0.89166849,2347.9,2347.7,0.42807524]
[1725963652778,0.89166849,2347.9,2347.8,0.55]
[1725963653203,0.89166849,2347.9,2347.6,0.55]
[1725963653507,0.89166849,2347.9,2347.7,0.42807231]
[1725963653649,0.89166849,2347.9,2347.8,0.55]
[1725963654053,0.89166849,2347.9,2347.7,20.08]
[1725963654487,0.89166849,2347.8,2347.7,20.08]
[1725963654780,0.89166849,2347.9,2347.7,20.50807067]
[1725963654981,0.89166849,2347.9,2347.7,20.08]
[1725963655188,2.39888932,2347.8,2347.7,20.08]
[1725963655356,2.8448344,2347.8,2347.7,20.08]
[1725963656262,2.8448344,2347.8,2347.7,19.53]
[1725963656263,3.73519086,2347.8,2347.7,19.53]
[1725963656694,3.73796678,2347.8,2347.7,19.53]
[1725963657663,3.73796678,2347.8,2347.7,20.08]
[1725963658198,3.73818484,2347.8,2347.7,20.08]
[1725963660196,3.73818484,2347.8,2347.7,0.55]
[1725963660817,1.50722083,2347.8,2347.7,0.55]
[1725963661346,3.73857458,2347.8,2347.7,0.55]
[1725963661993,4.38020061,2347.8,2347.7,0.55]
[1725963662332,4.38026833,2347.8,2347.4,0.00080426]
[1725963662493,1.33890319,2347.5,2347.4,0.00080426]
[1725963663391,1.33890319,2347.6,2347.4,0.55080426]
[1725963663607,1.33890319,2347.5,2347.4,0.00080426]
[1725963663808,1.33890319,2347.6,2347.4,0.00080426]
[1725963664237,0.89258269,2347.5,2347.4,0.00080426]
[1725963664543,1.33890319,2347.5,2347.4,0.00080426]
[1725963664994,2.47147922,2347.5,2347.4,0.00080426]
[1725963665198,0.68627497,2347.5,2347.4,0.00080426]
[1725963665419,4.92408466,2347.5,2347.4,0.00080426]
[1725963666038,2.24807425,2347.5,2347.4,0.00080426]
[1725963666194,0.68627497,2347.5,2347.4,0.00080426]
[1725963666604,2.2486304,2347.5,2347.4,0.00080426]
[1725963666939,0.68627497,2347.5,2347.4,0.00080426]
[1725963667123,2.67601041,2347.6,2347.4,0.00080426]
[1725963667297,0.89191505,2347.5,2347.4,0.00080426]
[1725963667501,0.89191505,2347.5,2347.4,0.55080426]
[1725963667502,0.89192555,2347.5,2347.4,0.55080426]
[1725963667846,1.33782763,2347.6,2347.4,0.55080426]
[1725963667847,0.89192555,2347.6,2347.4,0.55080426]
[1725963668041,1.33782763,2347.7,2347.5,0.08518789]
[1725963668042,0.89192555,2347.7,2347.5,0.08518789]
[1725963668197,0.89192555,2347.7,2347.6,0.55]
[1725963668198,1.33782763,2347.7,2347.6,0.55]
[1725963668741,0.89198919,2347.8,2347.6,20.08]
[1725963668897,0.89198919,2347.8,2347.7,2.01651879]
[1725963669094,0.89198919,2347.8,2347.7,2.56651879]
[1725963670245,0.89198919,2347.8,2347.7,2.65170098]
[1725963670395,2.67584121,2348.4,2347.8,2.0]
[1725963670396,0.89198919,2348.3,2347.8,2.0]
[1725963670596,1.33782763,2348.4,2347.8,2.0]
[1725963670597,0.89198919,2348.4,2347.9,3.17834809]
[1725963671398,0.89198919,2348.5,2347.9,3.17834809]
[1725963671601,0.89198919,2348.5,2348.0,2.77083481]
[1725963671835,0.89198919,2348.5,2348.1,0.55]
[1725963672900,0.89198919,2348.4,2348.1,0.55]
[1725963674427,0.89198919,2348.3,2348.1,0.55]
[1725963676901,0.89198919,2348.4,2348.1,0.55]
[1725963681002,0.89198919,2348.4,2348.1,20.08]
[1725963681416,0.89198919,2348.5,2348.1,20.08]
[1725963681647,0.89198919,2348.5,2348.2,2.008]
[1725963681953,0.89198919,2348.5,2348.3,0.55]
[1725963681954,0.89198919,2348.4,2348.3,0.55]
[1725963682152,1.33782763,2348.5,2348.3,0.55]
[1725963682153,0.89198919,2348.5,2348.3,0.54868852]
[1725963682319,0.89198919,2348.4,2348.3,0.54868852]
[1725963683318,0.89198919,2348.5,2348.3,0.54868852]
[1725963683621,0.89198919,2348.4,2348.3,0.54868852]
[1725963683859,0.89198919,2348.5,2348.3,0.54868852]
[1725963684161,0.89198919,2348.5,2348.3,2.55655737]
[1725963684321,0.89198919,2348.6,2348.3,2.64171983]
[1725963684658,1.33782763,2348.8,2348.3,22.17171983]
[1725963684659,0.89198919,2348.8,2348.3,22.17171983]
[1725963684824,0.89198919,2348.8,2348.4,19.53]
[1725963685022,0.89198919,2348.8,2348.5,0.55]
[1725963685223,0.89198919,2348.8,2348.6,2.008]
[1725963685422,0.89198919,2348.9,2348.7,0.55]
[1725963687171,0.89198919,2348.8,2348.7,0.55]
[1725963687628,0.89198919,2348.9,2348.7,0.55]
[1725963689967,0.89198919,2349.0,2348.7,0.55]
[1725963690355,0.89198919,2348.9,2348.7,0.55]
[1725963691297,0.89198919,2349.0,2348.7,0.55]
[1725963692151,0.89198919,2348.9,2348.7,0.55]
[1725963692351,1.61995604,2349.0,2348.7,0.55]
[1725963692647,0.89198919,2349.0,2348.7,0.55]
[1725963694244,0.89198919,2349.1,2348.7,20.08]
[1725963694597,0.89198919,2349.1,2348.8,0.08513784]
[1725963694882,0.89198919,2349.2,2348.9,0.55]
[1725963696763,0.89198919,2349.3,2348.9,0.55]
[1725963697777,0.89198919,2349.2,2348.9,0.55]
[1725963698362,0.89198919,2349.3,2348.9,0.55]
[1725963698585,0.89198919,2349.2,2348.9,0.55]
[1725963699205,0.89198919,2349.2,2348.9,20.08]
[1725963700077,0.89198919,2349.3,2348.9,20.08]
[1725963702160,2.39770986,2349.3,2348.9,20.08]
[1725963708613,0.89198919,2349.2,2348.9,20.08]
[1725963708781,2.39770986,2349.3,2348.9,22.088]
[1725963709310,0.89198919,2349.2,2348.9,22.088]
[1725963709475,0.89198919,2349.2,2348.9,20.08]
[1725963711320,0.89198919,2349.1,2348.9,20.08]
[1725963713205,0.89198919,2349.0,2348.9,20.08]
[1725963714137,1.33782763,2349.2,2348.9,20.08]
[1725963714138,0.89198919,2349.1,2348.9,20.08]
[1725963714357,0.89198919,2349.0,2348.9,20.08]
[1725963715353,0.89174293,2349.0,2348.9,20.08]
[1725963715698,0.89174293,2349.1,2348.9,20.08]
[1725963715900,0.89179009,2349.1,2349.0,2.008]
[1725963716100,0.89173702,2349.1,2349.0,2.558]
[1725963716345,1.33782763,2349.1,2349.0,2.558]
[1725963716899,1.33782763,2349.1,2349.0,22.088]
[1725963717147,1.33782763,2349.1,2349.0,20.08]
[1725963722211,1.33782763,2349.1,2349.0,0.55]
[1725963722360,1.78362943,2349.2,2349.0,0.55]
[1725963722361,0.89220302,2349.2,2349.0,0.55]
[1725963722561,0.89220302,2349.1,2348.8,0.55]
[1725963722819,0.89220302,2349.2,2348.8,2.96868552]
[1725963723032,0.89220302,2349.2,2348.9,0.40346874]
[1725963723156,0.89220302,2349.2,2349.0,0.55]
[1725963723357,0.89220302,2349.2,2349.0,0.63512926]
[1725963723989,0.89220302,2349.3,2349.0,0.63512926]
[1725963724171,0.89220302,2349.3,2349.1,20.28121383]
[1725963724508,1.78362943,2349.5,2349.1,20.28121383]
[1725963724509,0.89220302,2349.5,2349.2,2.78369345]
[1725963724810,0.89220302,2349.4,2349.3,19.53]
[1725963724962,0.89220302,2349.5,2349.3,20.08]
[1725963725163,0.89220302,2349.6,2349.4,2.613]
[1725963725977,0.89220302,2349.7,2349.4,2.613]
[1725963726318,0.89220302,2349.7,2349.5,2.2143]
[1725963726493,0.89220302,2349.7,2349.6,20.16510985]
[1725963726696,1.78362943,2349.9,2349.6,20.16510985]
[1725963726697,0.89220302,2349.9,2349.6,20.16510985]
[1725963726865,0.89220302,2349.9,2349.6,20.08]
[1725963727266,0.89220302,2349.9,2349.7,0.08510292]
[1725963727575,0.89220302,2349.9,2349.8,20.08]
[1725963728113,0.89220302,2350.0,2349.8,20.08]
[1725963728310,0.89220302,2350.1,2349.8,20.08]
[1725963728517,0.89220302,2350.1,2349.9,2.20965103]
[1725963728682,0.89220302,2350.1,2350.0,0.55]
[1725963729623,0.89220302,2350.2,2350.0,0.55]
[1725963730116,0.89220302,2350.1,2350.0,0.55]
[1725963730412,1.33782763,2350.3,2350.0,0.55]
[1725963730413,0.89220302,2350.2,2350.0,0.55]
[1725963731268,0.89220302,2350.3,2350.0,0.55]
[1725963731508,0.89220302,2350.3,2350.0,2.7789651]
[1725963734412,2.39792369,2350.3,2350.0,0.55]
[1725963734566,0.89220302,2350.2,2349.9,19.53]
[1725963735934,0.89220302,2350.2,2350.0,0.55]
[1725963736237,0.89220302,2350.2,2350.0,2.64309843]
[1725963736546,5.66875675,2350.8,2350.1,19.53]
[1725963736547,0.89220302,2350.7,2350.1,19.53]
[1725963736702,0.89220302,2350.7,2350.2,20.16508342]
[1725963737035,0.89220302,2350.7,2350.3,0.08508344]
[1725963737207,0.89220302,2350.7,2350.4,0.55]
[1725963737413,2.39792369,2350.8,2350.4,0.55]
[1725963738103,0.89220302,2350.8,2350.4,0.55]
[1725963738506,0.89220302,2350.8,2350.3,0.55]
[1725963738728,0.89220302,2350.8,2350.2,19.53]
[1725963738729,3.25835908,2350.5,2350.2,19.53]
[1725963739050,3.25835908,2350.3,2350.2,19.53]
[1725963739201,0.89220302,2350.5,2350.2,19.53]
[1725963739202,4.1505621,2350.5,2350.2,19.53]
[1725963740239,0.89220302,2350.4,2350.3,0.55]
[1725963741529,2.51083135,2350.8,2350.1,0.55]
[1725963741530,0.89220302,2350.8,2350.1,0.55]
[1725963741704,4.59618671,2350.9,2350.2,0.08508205]
[1725963741705,4.1505621,2350.9,2350.2,0.08508205]
[1725963741902,4.1505621,2350.9,2350.3,0.55]
[1725963742102,4.1505621,2350.9,2350.4,0.08508209]
[1725963742402,4.1505621,2350.9,2350.5,0.55]
[1725963742727,0.89220302,2350.9,2350.5,0.55]
[1725963742926,1.91940494,2350.9,2350.5,0.55]
[1725963743123,5.17776402,2350.9,2350.5,0.55]
[1725963745830,0.89220302,2350.9,2350.5,0.55]
[1725963746008,7.1505621,2351.1,2350.5,0.55]
[1725963747219,7.1505621,2351.1,2350.3,0.63508221]
[1725963747424,8.17776402,2351.1,2350.3,3.39959043]
[1725963748719,3.25835908,2350.9,2350.3,0.55]
[1725963748962,3.25835908,2350.7,2350.3,0.55]
[1725963749289,3.25835908,2350.7,2350.2,27.01]
[1725963749290,3.25835908,2350.5,2350.2,27.01]
[1725963749557,0.89220302,2350.7,2350.2,27.01]
[1725963749558,3.25835908,2350.3,2350.2,27.01]
[1725963749763,3.25835908,2350.3,2349.0,3.25835908]
[1725963749764,3.25835908,2350.3,2349.7,7.48]
[1725963750131,1.21803893,2350.6,2349.7,7.48]
[1725963750132,3.25835908,2350.5,2349.7,7.48]
[1725963750355,4.1505621,2350.7,2349.8,0.08510287]
[1725963750566,6.25835908,2350.7,2349.8,0.84161316]
[1725963750863,3.25835908,2350.5,2349.8,0.75651029]
[1725963751075,3.25835908,2350.5,2349.9,0.55]
[1725963751250,3.25835908,2350.5,2349.8,0.55]
[1725963752179,3.25835908,2350.3,2349.8,0.55]
[1725963752857,3.78136214,2350.5,2349.8,20.16510612]
[1725963753226,3.78136214,2350.5,2349.8,20.08]
[1725963754062,3.78136214,2350.5,2349.8,22.088]
[1725963756327,4.67356516,2350.5,2349.8,20.08]
[1725963756575,3.25835908,2350.3,2349.8,20.08]
[1725963758885,3.25835908,2350.3,2349.8,0.55]
[1725963759044,3.25835908,2350.3,2349.6,0.55]
[1725963759382,3.25835908,2350.3,2349.7,19.53]
[1725963759584,3.25835908,2350.3,2349.8,0.55]
[1725963760280,0.89220302,2350.9,2350.2,3.25835908]
[1725963760502,0.89220302,2351.1,2350.3,21.31599788]
[1725963760678,0.89220302,2351.2,2350.3,20.60583591]
[1725963760859,1.33782763,2351.3,2350.4,2.4574357]
[1725963760860,4.1505621,2351.3,2350.4,2.4574357]
[1725963761067,4.1505621,2351.3,2350.5,2.85632716]
[1725963761419,3.25835908,2351.1,2350.6,0.55]
[1725963761549,4.1505621,2351.1,2350.6,0.55]
[1725963761745,4.1505621,2351.1,2350.6,0.83563272]
[1725963763645,4.1505621,2351.1,2350.6,0.55]
[1725963763889,4.1505621,2351.1,2350.4,0.55]
[1725963764886,4.1505621,2351.1,2350.4,20.08]
[1725963765843,0.89220302,2351.0,2350.4,20.08]
[1725963766095,0.89220302,2351.0,2350.5,2.06058359]
[1725963766390,4.1505621,2351.1,2350.6,0.55]
[1725963766549,0.89220302,2351.0,2350.6,0.55]
[1725963766746,0.89220302,2351.0,2350.5,0.55]
[1725963767170,4.1505621,2351.1,2350.5,0.55]
[1725963767373,0.89220302,2351.0,2350.5,0.55]
[1725963770875,0.89220302,2350.9,2350.5,20.08]
[1725963774139,0.89220302,2350.8,2350.5,20.08]
[1725963774699,0.89220302,2350.9,2350.5,20.08]
[1725963776050,0.89220302,2350.9,2350.1,19.53]
[1725963776051,4.1505621,2350.7,2350.1,19.53]
[1725963776333,0.89220302,2350.6,2350.1,19.53]
[1725963777362,0.89220302,2350.6,2350.2,0.55]
[1725963777533,0.89220302,2350.5,2350.2,0.55]
[1725963778101,0.89220302,2350.6,2350.2,0.55]
[1725963778526,0.89220302,2350.5,2350.2,0.55]
[1725963778715,0.89220302,2350.6,2350.2,0.55]
[1725963779203,0.89220302,2350.5,2350.2,0.55]
[1725963780013,0.89220302,2350.5,2350.1,0.55]
[1725963781150,4.1505621,2350.5,2350.1,0.55]
[1725963781304,1.11520608,2350.4,2350.1,0.55]
[1725963781639,0.89220302,2350.4,2350.1,0.55]
[1725963781815,0.89220302,2350.4,2349.8,19.53]
[1725963782013,4.1505621,2350.3,2349.8,19.53]
[1725963782233,3.25835908,2349.9,2349.3,1.33176496]
[1725963782401,4.1505621,2349.9,2349.3,1.33176496]
[1725963782837,0.89220302,2349.8,2349.3,1.33176496]
[1725963784221,0.89220302,2349.7,2349.3,1.33176496]
[1725963784405,0.89220302,2349.8,2349.3,1.33176496]
[1725963785262,0.89220302,2349.8,2349.4,0.55]
[1725963787357,4.59618671,2349.9,2349.4,0.55]
[1725963787358,4.1505621,2349.9,2349.4,0.55]
[1725963787529,4.87776402,2349.9,2349.4,0.55]
[1725963789138,3.985561,2349.9,2349.4,0.55]
[1725963790273,3.25835908,2349.7,2349.4,0.55]
[1725963790760,3.25835908,2349.7,2349.2,0.55]
[1725963791367,3.25835908,2349.7,2349.1,19.53]
[1725963791368,3.25835908,2349.5,2349.0,7.48]
[1725963792926,3.25835908,2349.3,2349.1,0.55]
[1725963793124,0.32583591,2349.2,2349.1,0.55]
[1725963793360,3.25835908,2349.3,2348.9,0.55]
[1725963793563,3.25835908,2349.3,2348.8,19.53]
[1725963793564,3.25835908,2349.1,2348.8,19.53]
[1725963793865,3.25835908,2349.1,2348.2,12.31]
[1725963793866,3.25835908,2348.9,2348.3,27.01]
[1725963794023,3.25835908,2348.9,2348.4,19.53]
[1725963794866,3.25835908,2349.0,2348.4,19.53]
[1725963795065,3.58419499,2349.0,2348.4,19.53]
[1725963795267,3.25835908,2349.0,2348.5,0.55]
[1725963798390,3.25835908,2349.2,2348.5,0.63515416]
[1725963798545,3.0,2349.5,2348.6,2.56924788]
[1725963798546,3.25835908,2349.4,2348.6,2.56924788]
[1725963798891,3.0,2349.3,2348.7,20.16514326]
[1725963799182,3.0,2349.3,2348.7,22.43858237]
[1725963799769,3.0,2349.3,2348.7,22.35343911]
[1725963800024,3.25835908,2349.2,2348.7,22.35343911]
[1725963801713,3.25835908,2349.2,2348.7,20.08]
[1725963803513,3.0,2349.3,2348.7,20.08]
[1725963803879,3.25835908,2349.2,2348.8,19.53]
[1725963804218,3.25835908,2349.2,2348.9,0.55]
[1725963804378,0.62583591,2349.1,2348.9,0.55]
[1725963805171,3.25835908,2349.2,2348.9,0.55]
[1725963809166,3.25835908,2349.4,2348.9,0.55]
[1725963810548,6.25835908,2349.6,2348.7,0.55]
[1725963810752,3.25835908,2349.8,2348.8,0.08513842]
[1725963810956,3.25835908,2349.8,2348.9,0.55]
[1725963811253,3.25835908,2349.8,2349.0,0.08513236]
[1725963811452,3.25835908,2349.8,2349.1,20.08]
[1725963811664,3.25835908,2349.8,2349.2,19.61512479]
[1725963811822,3.25835908,2349.8,2349.3,2.56651248]
[1725963812559,3.25835908,2350.0,2349.3,2.56651248]
[1725963812920,3.25835908,2350.0,2349.3,2.65163748]
[1725963813212,3.25835908,2350.0,2349.3,0.55]
[1725963813536,3.25835908,2350.0,2349.1,0.97774401]
[1725963814356,3.25835908,2350.0,2349.2,0.08511721]
[1725963814655,3.0,2350.3,2349.2,0.08511721]
[1725963814656,3.25835908,2350.2,2349.3,0.55]
[1725963814857,3.25835908,2350.2,2349.4,0.0851153]
[1725963815034,3.25835908,2350.2,2349.5,0.55]
[1725963815267,3.25835908,2350.4,2349.6,0.08510726]
[1725963815577,3.25835908,2350.4,2349.7,0.55]
[1725963815784,3.85550479,2350.6,2349.8,0.08510475]
[1725963815964,3.85550479,2350.6,2349.9,0.55]
[1725963816164,0.67055048,2350.5,2349.9,0.55]
[1725963816369,3.67055048,2350.5,2349.9,0.55]
[1725963816560,3.25835908,2350.4,2349.9,0.55]
[1725963816991,3.0,2350.3,2349.9,0.55]
[1725963819064,3.25835908,2350.4,2349.7,0.63510566]
[1725963819269,3.25835908,2350.4,2349.7,3.34461614]
[1725963822203,3.25835908,2350.4,2349.7,2.79461614]
[1725963822575,4.1505621,2350.6,2349.8,0.0851056]
[1725963822799,4.1505621,2350.6,2349.7,19.53]
[1725963822999,3.25835908,2350.4,2349.7,19.53]
[1725963823217,3.25835908,2350.4,2349.8,1.953]
[1725963823948,3.25835908,2350.4,2349.9,0.0850973]
[1725963825544,3.25835908,2350.4,2349.8,1.953]
[1725963825897,4.1505621,2350.4,2349.8,1.953]
[1725963827741,4.1505621,2350.4,2349.8,21.483]
[1725963827950,4.1505621,2350.4,2349.8,19.53]
[1725963828422,3.25835908,2350.4,2349.8,19.53]
[1725963828628,0.89220302,2350.5,2349.9,0.08510557]
[1725963828831,0.89220302,2350.5,2349.9,2.04661613]
[1725963829202,4.1505621,2350.6,2349.9,2.04661613]
[1725963829512,4.1505621,2350.6,2350.0,19.53]
[1725963829697,1.33782763,2350.7,2350.0,19.53]
[1725963829698,0.89220302,2350.7,2350.1,0.08509033]
[1725963829905,0.89220302,2350.7,2350.1,19.61509033]
[1725963830206,0.89220302,2350.7,2350.1,21.57659936]
[1725963830801,3.25835908,2350.4,2350.1,21.49150903]
[1725963831098,4.1505621,2350.6,2350.1,19.53]
[1725963831299,0.89220302,2350.7,2350.1,19.53]
[1725963831534,0.89220302,2350.8,2350.2,21.56809083]
[1725963831699,0.89220302,2350.9,2350.3,0.08508244]
[1725963831898,0.89220302,2350.9,2350.3,2.04659068]
[1725963832312,4.1505621,2351.0,2350.3,2.04659068]
[1725963832746,0.89220302,2350.9,2350.3,2.04659068]
[1725963833244,3.25835908,2350.8,2350.3,1.96150824]
[1725963833733,4.1505621,2350.8,2350.3,1.96150824]
[1725963833942,3.25835908,2350.8,2350.4,2.14915082]
[1725963836752,3.25835908,2350.8,2350.4,21.67915082]
[1725963836904,3.25835908,2350.8,2350.4,19.53]
[1725963837424,3.25835908,2351.0,2350.4,19.53]
[1725963842818,3.25835908,2351.0,2350.5,19.53]
[1725963844228,1.50363024,2350.9,2350.5,19.53]
[1725963845270,3.89220302,2351.2,2350.5,19.53]
[1725963845271,1.50363024,2350.7,2350.5,19.53]
[1725963848866,1.50363024,2350.7,2350.2,19.53]
[1725963849096,1.50363024,2350.7,2350.2,20.3728]
[1725963853399,2.39583326,2350.7,2350.2,20.3728]
[1725963853974,1.50363024,2350.3,2350.2,19.53]
[1725963854163,1.50363024,2350.3,2349.6,15.31]
[1725963854164,1.50363024,2350.3,2349.7,19.53]
[1725963854363,1.50363024,2350.3,2349.8,0.42763742]
[1725963854594,1.50363024,2350.3,2349.8,2.74376374]
[1725963855361,2.39583326,2350.3,2349.8,2.74376374]
[1725963856365,0.89220302,2350.2,2349.8,2.74376374]
[1725963856578,0.89220302,2350.2,2349.8,22.27376374]
[1725963856785,1.50363024,2350.3,2349.9,0.66592885]
[1725963856786,2.39583326,2350.3,2349.9,0.66592885]
[1725963857112,2.39583326,2350.3,2349.8,19.53]
[1725963857320,2.39583326,2350.3,2349.9,2.61893637]
[1725963857523,2.39583326,2350.3,2349.9,1.953]
[1725963858120,0.89220302,2350.2,2349.9,1.953]
[1725963860704,0.89220302,2350.2,2350.0,0.66595049]
[1725963860906,0.89220302,2350.1,2349.9,19.53]
[1725963861093,2.84145787,2350.3,2349.9,19.53]
[1725963861094,0.89220302,2350.2,2349.9,19.53]
[1725963861306,0.89220302,2350.1,2349.9,19.53]
[1725963861796,0.89220302,2350.2,2350.0,0.66595821]
[1725963861994,0.89220302,2350.2,2349.9,19.53]
[1725963862389,0.89220302,2350.1,2349.9,19.53]
[1725963863204,0.89220302,2350.1,2349.9,21.483]
[1725963864009,0.89220302,2350.1,2349.9,19.53]
[1725963864201,2.39583326,2350.1,2349.9,19.53]
[1725963866204,0.89220302,2350.0,2349.9,19.53]
[1725963866729,0.89220302,2350.0,2349.6,19.53]
[1725963866944,2.39583326,2349.9,2349.7,0.66598665]
[1725963867228,2.39583326,2349.9,2349.2,0.40628612]
[1725963867229,0.89220302,2349.8,2349.3,19.53]
[1725963867426,0.89220302,2349.8,2349.4,0.66605367]
[1725963867617,0.89220302,2349.8,2349.5,0.66605367]
[1725963867816,0.89220302,2349.8,2349.3,22.40483652]
[1725963868015,0.89220302,2349.8,2349.4,2.9471894]
[1725963868217,0.89220302,2349.7,2349.5,0.66607714]
[1725963868397,0.89220302,2349.8,2349.4,2.28111226]
[1725963868595,0.89220302,2349.8,2349.5,0.66608188]
[1725963868825,0.89220302,2349.8,2349.4,2.28111226]
[1725963869030,0.89220302,2349.8,2349.5,0.66608228]
[1725963869339,0.89220302,2349.8,2349.5,2.24771945]
[1725963870339,0.89220302,2350.0,2349.6,0.75111421]
[1725963870501,0.89220302,2350.0,2349.7,0.965885]
[1725963870830,1.33782763,2350.1,2349.8,0.66597049]
[1725963870831,0.89220302,2350.1,2349.8,0.66597049]
[1725963871028,0.89220302,2350.1,2349.7,19.82988337]
[1725963871333,0.89220302,2350.1,2349.8,2.65746995]
[1725963871549,0.89220302,2350.1,2349.8,1.9914996]
[1725963871832,0.89220302,2350.2,2349.8,1.9914996]
[1725963872003,0.89220302,2350.1,2349.8,2.07660785]
[1725963872207,0.89220302,2350.2,2349.9,2.1821383]
[1725963872538,0.89220302,2350.2,2350.0,0.22672466]
[1725963872842,0.89220302,2350.3,2350.0,0.22672466]
[1725963873335,0.89220302,2350.2,2350.0,0.22672466]
[1725963874244,0.89220302,2350.3,2350.0,0.31182497]
[1725963875272,0.89220302,2350.3,2350.0,0.22672466]
[1725963875736,0.89220302,2350.3,2350.0,19.75672466]
[1725963877404,0.89220302,2350.2,2350.0,19.75672466]
[1725963878300,0.89220302,2350.2,2350.1,2.1938863]
[1725963881720,0.89220302,2350.2,2350.1,21.7238863]
[1725963884933,0.89220302,2350.3,2350.1,21.7238863]
[1725963885264,0.89220302,2350.2,2350.1,19.53]
[1725963885671,0.89220302,2350.4,2350.1,20.19585821]
[1725963885837,0.89220302,2350.6,2350.2,22.32320194]
[1725963886177,1.33782763,2350.8,2350.3,21.7845628]
[1725963886178,0.89220302,2350.8,2350.3,21.7845628]
[1725963886324,0.89220302,2350.9,2350.4,0.66585821]
[1725963886530,0.89220302,2350.9,2350.5,3.15249789]
[1725963886756,0.89220302,2350.9,2350.6,0.66573761]
[1725963886937,0.89220302,2350.9,2350.7,0.085072]
[1725963887348,0.89220302,2350.9,2350.7,2.28674803]
[1725963890580,0.89220302,2350.9,2350.7,21.81674803]
[1725963890757,0.89220302,2351.0,2350.7,19.53]